Cogmind - Beta 13 @@@ ROGUE MODE // 2024.04.05 @ 21:06:13 Player: Chickoon Result: Self-destructed Performance ------------- Evolutions (2) 1000 Regions Visited (5) 1000 Robots Destroyed (45) 225 Value Destroyed (1084) 1084 Prototype IDs (3) 60 Alien Tech Used (0) 0 Bonus (0) 0 TOTAL SCORE: 3369 Bonus ------- None Cogmind --------- Core Integrity 362/550 Matter 210/300 Energy 160/160 System Corruption 0% Temperature Cool (9) Movement Flying (247) Ox3 Location -8/Materials Parts ------- > --- POWER (1) -------- Light Nuclear Core > --- PROPULSION (3) --- Improved Flight Unit Improved Flight Unit > --- UTILITY (5) ------ Improved Heat Sink Large Storage Unit Machine Analyzer Light Armor Plating > --- WEAPON (2) ------- Flak Cannon Maul > --- INVENTORY (15) --- Improved Ion Engine Improved Terrain Scanner Microactuators Improved Trap Extractor (1/6 EMP Trap) Improved Medium Laser Improved Medium Laser Heavy Assault Rifle Rocket Launcher Rocket Launcher Datajack Peak State ------------ > --- POWER ------------ Improved Deuterium Engine > --- PROPULSION ------- Wheel Compact Wheel > --- UTILITY ---------- Improved Heat Sink Large Storage Unit Machine Analyzer Improved Trap Extractor > --- WEAPON ----------- Heavy Laser Heavy Assault Rifle > --- INVENTORY -------- Improved Ion Engine Wheel Improved Flight Unit Improved Flight Unit Improved Terrain Scanner Microactuators Medium Armor Plating Improved Medium Laser Improved Medium Laser Improved Medium Laser Light Assault Rifle Rocket Launcher Rocket Launcher Datajack Maul [Rating: 26] Favorites ----------- Power Ion Engine Engine Ion Engine Power Core Light Nuclear Core Propulsion Wheel Leg Carbon-fiber Leg Wheel Wheel Flight Unit Improved Flight Unit Utility Large Storage Unit Device Improved Heat Sink Storage Large Storage Unit Processor Machine Analyzer Protection Light Armor Plating Weapon Assault Rifle Energy Gun Heavy Laser Ballistic Gun Assault Rifle Ballistic Cannon Improved Light Cannon Launcher Rocket Launcher Impact Weapon Maul Build | -11 -10 -10 -9 -9 -8 ------- Run | Yrd Mat Min Mat Min Mat Slots Evolved 4 | . . . 2 . 2 Power . | . . . . . . Propulsion 1 | . . . . . 1 Utility 3 | . . . 2 . 1 Weapon . | . . . . . . Parts Attached 57 | 8 1 1 15 17 15 Power 7 | 1 . 1 3 1 1 Engine 6 | 1 . 1 3 1 . Core 1 | . . . . . 1 Reactor . | . . . . . . Propulsion 13 | 3 . . 2 4 4 Treads . | . . . . . . Leg 1 | . . . . . 1 Wheel 9 | 3 . . 2 4 . Hover . | . . . . . . Flight 3 | . . . . . 3 Utility 11 | 2 . . 5 3 1 Device 5 | 1 . . 2 2 . Storage 2 | 1 . . 1 . . Processor 2 | . . . 2 . . Hackware . | . . . . . . Protection 2 | . . . . 1 1 Artifact . | . . . . . . Weapon 26 | 2 1 . 5 9 9 Energy Gun 6 | . . . 2 2 2 Energy Cannon . | . . . . . . Ballistic Gun 10 | 2 1 . 2 3 2 Ballistic Cannon 2 | . . . 1 . 1 Launcher 2 | . . . . 1 1 Special Weapon . | . . . . . . Impact Weapon 6 | . . . . 3 3 Slashing Weapon . | . . . . . . Piercing Weapon . | . . . . . . Special Melee Weapon . | . . . . . . Unidentified Prototypes 1 | . . . 1 . . Parts Lost 9 | . . . . 1 8 Power 1 | . . . . . 1 Propulsion 5 | . . . . 1 4 Utility 1 | . . . . . 1 Weapon 2 | . . . . . 2 Highest Loss Streak 7 | . . . . 1 7 To Critical Strikes . | . . . . . . Average Slot Usage (%) 95 | . 100 100 94 99 75 Engine 10 | . 14 14 11 11 2 Wheel 20 | . 28 28 22 21 2 Flight 1 | . . . . . 14 Device 18 | . 14 14 19 21 9 Storage 11 | . 14 14 11 11 9 Processor 8 | . . . 8 11 9 Energy Gun 5 | . . . 3 10 1 Ballistic Gun 13 | . 28 28 12 10 8 Ballistic Cannon 2 | . . . 5 . 3 Impact Weapon 1 | . . . . 1 4 Naked Turns . | . . . . . . Heaviest Build 45 | 14 15 15 36 45 45 Greatest Support 32 | 32 26 26 26 26 20 Greatest Overweight (x) 4 | . . . 1 4 2 Average Overweight (x) . | . . . . 1 1 Largest Inventory Capacity 15 | 8 8 8 15 15 15 Average Capacity 13 | 7 8 8 14 15 15 Most Carried 15 | 3 7 8 15 15 15 Average Carried 11 | . 5 7 12 14 11 Final Capacity 15 | 8 8 8 15 15 15 Final Carried 15 | 3 7 8 15 15 10 Class Distribution -------------------- 66% | Scavenger-Mutant 33% | Mutant Dominant Class ---------------- Mutant | -10/Materials Mutant | -10/Mines Scavenger-Mutant | -9/Materials Scavenger-Mutant | -9/Mines Scavenger-Mutant | -8/Materials Resources | -11 -10 -10 -9 -9 -8 ----------- Run | Yrd Mat Min Mat Min Mat Matter Collected 1218 | 87 . 135 625 292 79 Remotely . | . . . . . . Salvage Created 1327 | 43 . 135 642 374 133 Parts 89 | 6 . 9 46 24 4 Haulers Intercepted 4 | . . . 4 . . Recyclers Shooed 1 | . . . 1 . . Parts Field Recycled . | . . . . . . Retrieved Matter . | . . . . . . Parts Self-Destructed . | . . . . . . Prevented . | . . . . . . Kills | -11 -10 -10 -9 -9 -8 ------- Run | Yrd Mat Min Mat Min Mat Combat Hostiles Destroyed 30 | . . 5 8 14 3 Melee 3 | . . . . 1 2 Guns 20 | . . 5 5 10 . Cannons 3 | . . . 3 . . AOE 3 | . . . . 2 1 Classes Destroyed 12 | 1 . 2 7 1 1 Worker 1 | . . . 1 . . Builder 2 | . . . 2 . . Tunneler 4 | 2 . . . 2 . Hauler 4 | . . . 4 . . Mechanic 1 | . . . 1 . . Operator 1 | . . . 1 . . Watcher 5 | . . . 4 . 1 Swarmer 6 | . . 3 . 3 . Grunt 15 | . . 2 4 8 1 Sentry 4 | . . . 4 . . Hunter 2 | . . . . . 2 Assembled 3 | . . . . 3 . Best Kill Streak 5 | 1 . 3 5 4 2 Combat Bots Only 3 | . . 3 2 3 2 Max Kills in Single Turn 2 | 1 . 1 2 1 1 Gunslinging . | . . . . . . Exploded 1 | . . . . 1 1 Melee 1 | . . . . 1 1 Uniques/NPCs Destroyed . | . . . . . . Combat | -11 -10 -10 -9 -9 -8 -------- Run | Yrd Mat Min Mat Min Mat Hostile Shots Fired 152 | . 1 13 39 42 57 Missed 38 | . . 4 14 12 8 Damage Taken 1637 | . 15 104 336 411 771 Core 452 | . . 10 95 159 188 Absorbed by Shields . | . . . . . . Core Remaining (%) 77 | 100 . 96 . 36 . Volleys Fired 113 | 9 1 10 53 29 11 Largest 2 | 2 2 2 2 2 2 Hottest 125 | 40 40 40 112 102 125 Shots Fired 221 | 18 2 20 106 56 19 Gun 174 | 18 2 20 64 54 16 Cannon 44 | . . . 42 . 2 Launcher 3 | . . . . 2 1 Special . | . . . . . . Kinetic 172 | 18 2 20 93 27 12 Thermal 46 | . . . 13 27 6 Explosive 3 | . . . . 2 1 Electromagnetic . | . . . . . . Robot Hit Streak 11 | 4 . 11 8 10 5 Robot Miss Streak 6 | 3 . 1 6 3 3 Penetration Max . | . . . . . . Secondary Targets 1 | . . 1 . . . Max Gunslinging Chain 1 | . . 1 . . . Shots Hit Robots 147 | 10 . 15 62 40 20 Core Hits 69 | 5 . 8 28 19 9 Critical Kills . | . . . . . . Critical Parts Destroyed 3 | . . . . 1 2 Critical Strikes 5 | . . . 1 1 3 Burn 2 | . . . 1 . 1 Smash 3 | . . . . 1 2 Melee Attacks 32 | . . . . 25 7 Impact 32 | . . . . 25 7 Slashing . | . . . . . . Piercing . | . . . . . . Sneak Attacks 1 | . . . . 1 . Combat Hostiles . | . . . . . . Follow-up Attacks . | . . . . . . Damage Inflicted 2849 | 127 . 182 1095 947 498 Guns 1642 | 127 . 182 564 634 135 Cannons 558 | . . . 531 . 27 Explosions 244 | . . . . 146 98 Melee 405 | . . . . 167 238 Ramming . | . . . . . . Kinetic 1589 | 127 . 182 911 277 92 Thermal 611 | . . . 184 357 70 Explosive 244 | . . . . 146 98 Electromagnetic . | . . . . . . Impact 405 | . . . . 167 238 Slashing . | . . . . . . Piercing . | . . . . . . Highest Corruption . | . . . . . . Average Corruption . | . . . . . . Corruption Purged . | . . . . . . Corruption Blocked . | . . . . . . Overload Shots . | . . . . . . Overflow Damage 156 | . . . . 72 84 Projectiles . | . . . . . . Explosions . | . . . . . . Melee 156 | . . . . 72 84 Knockbacks 9 | . . . 6 1 2 Impact 3 | . . . . 1 2 Kinetic 6 | . . . 6 . . Secondary . | . . . . . . Self-Inflicted Damage . | . . . . . . Shots . | . . . . . . Rammed . | . . . . . . Targets Rammed . | . . . . . . Kicked . | . . . . . . Crushed . | . . . . . . Highest Temperature 27 | . . 2 27 13 5 Average Temperature 5 | . . 2 9 4 3 Received Heat Transfer 365 | . 9 51 111 104 90 Siege Activations . | . . . . . . Robots Corrupted . | . . . . . . Combat Hostiles . | . . . . . . Parts Fried 3 | . . . . 1 2 Impact Corruptions 5 | . . . . 3 2 Robots Melted . | . . . . . . Combat Hostiles . | . . . . . . Parts Melted . | . . . . . . Heat Transferred 1406 | . . . 481 703 222 Parts Sabotaged . | . . . . . . Parts Stolen . | . . . . . . Parts Stripped . | . . . . . . Power Chain Reactions . | . . . . . . Alert | -11 -10 -10 -9 -9 -8 ------- Run | Yrd Mat Min Mat Min Mat Peak Influence 363 | 10 21 132 363 211 133 Initial 121 | . 6 7 51 121 64 Average 131 | 4 6 99 195 134 106 Maximum Alert Level 1 | . . . 1 1 . Low Security (%) 78 | 100 100 100 45 85 100 Level 1 21 | . . . 54 14 . Level 2 . | . . . . . . Level 3 . | . . . . . . Level 4 . | . . . . . . Level 5 . | . . . . . . High Security . | . . . . . . Max Security . | . . . . . . Squads Dispatched 4 | . 2 . 1 . 1 Investigation 1 | . . . . . 1 Extermination . | . . . . . . Reinforcement 3 | . 2 . 1 . . Assault . | . . . . . . Garrison . | . . . . . . Intercept . | . . . . . . Searches Triggered . | . . . . . . Construction Impeded . | . . . . . . Haulers Reinforced . | . . . . . . Active Scanning Responses . | . . . . . . Cargo Convoy Interrupts . | . . . . . . Stealth | -11 -10 -10 -9 -9 -8 --------- Run | Yrd Mat Min Mat Min Mat Distress Signals 3 | . 1 . 2 . . Communications Jammed . | . . . . . . Distress Signals . | . . . . . . Times Spotted 49 | . 4 4 21 14 6 Peak Tracking Total 5 | . 5 2 4 3 3 Tactical Retreats 1 | . . . . 1 . Traps | -11 -10 -10 -9 -9 -8 ------- Run | Yrd Mat Min Mat Min Mat Traps Triggered 3 | . . . 2 . 1 Indirectly . | . . . . . . Trap Hack Attempts . | . . . . . . Triggered . | . . . . . . Disarmed . | . . . . . . Reprogrammed . | . . . . . . Reused . | . . . . . . Traps Extracted . | . . . . . . Installed . | . . . . . . Triggered . | . . . . . . Most Traps Carried 1 | . . . . 1 1 Machines | -11 -10 -10 -9 -9 -8 ---------- Run | Yrd Mat Min Mat Min Mat Machines Disabled 3 | . . . 3 . . Max in Single Turn 1 | . . . 1 . . Machines Repaired . | . . . . . . Machines Dismantled . | . . . . . . Machines Sabotaged . | . . . . . . Overloaded Fab Kills . | . . . . . . Hacking | -11 -10 -10 -9 -9 -8 --------- Run | Yrd Mat Min Mat Min Mat Machines Accessed 10 | . 3 1 4 1 1 Terminals 7 | . 2 1 3 . 1 Fabricators . | . . . . . . Repair Stations . | . . . . . . Recycling Units 2 | . 1 . 1 . . Scanalyzers . | . . . . . . Garrison Access . | . . . . . . Total Hacks 23 | . 6 2 12 1 2 Successful 11 | . 3 1 6 1 . Failed 12 | . 3 1 6 . 2 Catastrophic 6 | . 1 1 3 . 1 Database Lockouts . | . . . . . . Manual 13 | . 4 2 5 . 2 Terminals 15 | . 3 2 8 . 2 Fabricators . | . . . . . . Repair Stations . | . . . . . . Recycling Units 7 | . 3 . 4 . . Scanalyzers . | . . . . . . Garrison Access . | . . . . . . Terminal Hacks 5 | . 1 1 2 1 . Prototype ID Bank 1 | . . . 1 . . Open Door 1 | . . . . 1 . Branch Access Points 1 | . . . 1 . . Locate Traps 1 | . . 1 . . . Hauler Manifests 1 | . 1 . . . . Fabricator Hacks . | . . . . . . Repair Station Hacks . | . . . . . . Recycling Unit Hacks 6 | . 2 . 4 . . Process 1 | . . . 1 . . Report Inventory 1 | . . . 1 . . Retrieve Matter 3 | . 1 . 2 . . Retrieve Components 1 | . 1 . . . . Scanalyzer . | . . . . . . Garrison Access Hacks . | . . . . . . Unauthorized Hacks . | . . . . . . Terminals . | . . . . . . Fabricators . | . . . . . . Repair Stations . | . . . . . . Recycling Units . | . . . . . . Scanalyzers . | . . . . . . Garrison Access . | . . . . . . Data Cores Recovered . | . . . . . . Used . | . . . . . . Hacking Detections 9 | . 3 1 4 . 1 Full Trace Events . | . . . . . . Feedback Events . | . . . . . . Feedback Blocked . | . . . . . . Robot Schematics Acquired . | . . . . . . Robots Built . | . . . . . . Authchips . | . . . . . . Time . | . . . . . . Total Robot Build Rating . | . . . . . . Part Schematics Acquired . | . . . . . . Parts Built . | . . . . . . Authchips . | . . . . . . Time . | . . . . . . Total Part Build Rating . | . . . . . . Parts Repaired . | . . . . . . Time . | . . . . . . Parts Recycled . | . . . . . . Recycled Matter 2 | . . . 2 . . Retrieved Matter 2 | . . . 2 . . Retrieved Components 2 | . 2 . . . . Parts Scanalyzed . | . . . . . . Part Schematics Acquired . | . . . . . . Parts Damaged . | . . . . . . Bothacking | -11 -10 -10 -9 -9 -8 ------------ Run | Yrd Mat Min Mat Min Mat Used RIF Installer . | . . . . . . Robots Hacked . | . . . . . . Non-combat . | . . . . . . Combat . | . . . . . . Robot Hacks Applied . | . . . . . . Relay Couplers Released . | . . . . . . Fabnet Peak Effective % . | . . . . . . Robots Rewired . | . . . . . . Allies Hacked . | . . . . . . Hacks Repelled . | . . . . . . Allies | -11 -10 -10 -9 -9 -8 -------- Run | Yrd Mat Min Mat Min Mat Total Allies . | . . . . . . Largest Group . | . . . . . . Highest-Rated Group . | . . . . . . Highest-Rated Ally . | . . . . . . Total Orders . | . . . . . . Ally Attacks . | . . . . . . Total Damage . | . . . . . . Kills . | . . . . . . Allies Corrupted . | . . . . . . Allies Melted . | . . . . . . Intel | -11 -10 -10 -9 -9 -8 ------- Run | Yrd Mat Min Mat Min Mat Robot Analysis Total . | . . . . . . Derelict Logs Recovered 2 | . . 1 . 1 . Drone Launches . | . . . . . . Drone Recoveries . | . . . . . . Exploration | -11 -10 -10 -9 -9 -8 ------------- Run | Yrd Mat Min Mat Min Mat Turns Passed 1835 | 96 121 175 543 701 199 Spaces Moved 1228 | 60 126 153 322 504 63 Core 1 | 1 . . . . . Treads . | . . . . . . Legs 6 | . . . . . 6 Wheels 1182 | 59 126 153 322 504 18 Hover . | . . . . . . Flight 39 | . . . . . 39 Fastest Speed 50 | 50 90 90 90 95 107 Average Speed 102 | 96 90 90 104 100 163 Slowest Speed 260 | 100 90 90 105 140 260 Overloaded Moves . | . . . . . . Propulsion Burnouts . | . . . . . . Robots Hopped . | . . . . . . Cave-ins Triggered . | . . . . . . Exploration Rate (%) 29 | 4 21 28 35 81 9 Regions Visited 5 Branch Regions 2 Pre-discovered Areas . | . . . . . . Known Exits Taken 1 | . . . 1 . . Unknown Exits Taken 4 | 1 1 1 . 1 . Scrap Searched 1 | . . . . 1 . Spaces Dug . | . . . . . . Terrain Destroyed 30 | . . . 2 19 9 Melee . | . . . . . . Projectile 2 | . . . 2 . . AOE 28 | . . . . 19 9 Terrain Rammed . | . . . . . . Walls Destroyed . | . . . . . . Machines Disabled . | . . . . . . Actions | -11 -10 -10 -9 -9 -8 --------- Run | Yrd Mat Min Mat Min Mat Total 1526 | 78 131 170 423 601 123 Wait 55 | . . 5 15 11 24 Move 1223 | 59 125 152 321 503 63 Hop . | . . . . . . Pick Up 26 | 2 3 1 12 6 2 Fast Attach 14 | 7 1 . 4 . 2 Attach 10 | . . . 3 1 6 Detach 1 | . 1 . . . . Swap 33 | 1 . 1 8 16 7 Drop 19 | . . 1 7 10 1 Fire 113 | 9 1 10 53 29 11 Melee 32 | . . . . 25 7 Ram . | . . . . . . Kick . | . . . . . . Crush . | . . . . . . Escape Stasis . | . . . . . . Rewire . | . . . . . . Trap . | . . . . . . Miscellaneous . | . . . . . . Route ------- -11/Scrapyard -10/Materials -10/Mines (discovered 2 exits: *Mat x2) -9/Materials (discovered 3 exits: *Mat / *Min x2) -9/Mines -8/Materials (discovered 1 exit: Fac) History --------- Turn | Location | Event 44 | -11/Scrapyard | Discovered new exit (range 15) 97 | -11/Scrapyard | Entered Materials 201 | -10/Materials | Discovered new exit (range 7) 218 | -10/Materials | Entered Mines 237 | -10/Mines | Discovered new exit (range 6) 256 | -10/Mines | Discovered new exit (range 15) 316 | -10/Mines | Build established: Mutant 330 | -10/Mines | Learned Materials interactive machine intel 393 | -10/Mines | Entered Materials 393 | -9/Materials | Evolved 2 slots: Utility x2 394 | -9/Materials | Loaded intel: 18 interactive machine locations 400 | -9/Materials | Identified exit to Mines 880 | -9/Materials | Discovered new exit (range 16) 936 | -9/Materials | Entered Mines 1014 | -9/Mines | Found a hidden stash of uninstalled traps 1036 | -9/Mines | Learned location of 1 exit from Materials 1038 | -9/Mines | Met a Derelict who couldn't figure out how to use a Trap Extractor 1075 | -9/Mines | Build established: Scavenger-Mutant 1164 | -9/Mines | Excavation squad dispatched 1164 | -9/Mines | A large section of the Mines collapsed 1201 | -9/Mines | Core integrity fell below 50% 1414 | -9/Mines | Excavation squad dispatched 1628 | -9/Mines | Discovered new exit (range 8) 1637 | -9/Mines | Entered Materials 1637 | -8/Materials | Evolved 2 slots: Propulsion x1, Utility x1 1638 | -8/Materials | Identified exit to Factory 1735 | -8/Materials | Lost 7 parts (1p3n1u2w) 1836 | -8/Materials | Self-destructed Last Messages --------------- 01719_ H-55 Commando destroyed. 01721_ U-05 Engineer builds a Door. 01741_ Acquired Lgt. Armor Plating. 01743_ Acquired 42 matter. 01748_ Acquired Lgt. Nuclear Core. 01754_ Acquired Hvy. Assault Rifle. 01757_ Dropped Lgt. Assault Rifle. 01763_ Acquired Flak Cannon. 01775_ K-01 Serf collects debris. 01790_ W-25 Informer destroyed. 01798_ >> Machine Analyzer network decryption results: 01798_ Terminal x1 01806_ Triggered Alarm Trap. 01806_ An alarm sounds. 01806_ ALERT: Alarm triggered, dispatching investigation squad. 01811_ Connecting with Terminal... 01811_ Current location identified: Materials 01836_ Flight Unit destroyed. Map ----- +----------------------------------------------------+ | ???????????????????????????????????????????? | | ???????????????????????????????????????????? | | ???????????????????????????????????????????? | | ???????????????????????????????????????????? | | ??????????????????????"""????"""???????????? | | ?????????????????????"""""??"""""??????????? | | ?????????????????????"""""??"""""??????????? | | ?????????????????????"""""??"""""??????????? | | ??????????????????????"""????"""???????????? | | ???????????????????????????????????????????? | | ???????????????????????????????????????????? | | ???????????????????????????????????????????? | | ???????????????????????????????????????????? | | ???????????????????????????????????????????? | | ???????????????????????????????????????????? | | ??????????????######?????????????????????? | | ??????????????? ==! ?????????????????????? | | ??????????????? ==! #????????????????????? | | ????????????"""?=!! #########????????????? | | ????????????"""? # !#????????????? | | ????????????"""?? # """ #????????????? | | ????????????????? # """ !#????????????? | | ??????????????????g # """ #????????????? | | ?????????????????? # #?????????????" | | ??????????????????#/# "" #?????????????# | | ??????????????????#@# "T #??????######## | | ??????????????????# # "" #??????#] # | | ??????????????????# # #??????# """ # | | ???????????######## ##+########????# " " # | | ???????# %###### "" # | | ???????# +% + | | ???????# #############+##### # [[ # | | ????????????????????? ??# ######## | | ???????????????????# """ # +????## | | ???????????????????# """ # #????# | | ?????????????"""???# """ # #????# | | ?????????????"""???# ! + +????# | | ?????????????"""???# """ # #????# | | ???????????????????# """ # #????# | | ?????????????????????""" ! + +????### | | ???????????????????????? # ####??????? | | ????????????????????????##### #?????????? | | ???????????????????????????? #?????????? | | ????????????????????????????######?????????? | | ???????????????????????????????????????????? | | ???????????????????????????????????????????? | | ???????????????????????????????????????????? | | ???????????????????????????????????????????? | | ???????????????????????????????????????????? | | ???????????????????????????????????????????? | +----------------------------------------------------+ Best States ------------- Heat Dissipation 45 Energy Generation 16 Energy Capacity 290 Matter Stores 300 Matter Capacity 300 Sight Range 16 Terrain Scan Range 16 Terrain Scan Density 10 Armor Coverage 225 Melee Speed Boost 20 Evasion (%) 42 Trap Extractor Capacity 6 Item Schematics ----------------- None Robot Schematics ------------------ None Fabricated ------------ Nothing Alien Tech Used ----------------- None Achievements -------------- None Challenges ------------ None Game ------ Seed chickoo Manual? 1 Play Time 00:37:17 Cumulative 9.0 hours Start 2024.04.05 @ 20:01:00 End 2024.04.05 @ 21:06:13 Sessions 2 Manual Loads 0 Difficulty Rogue Special Mode None Game No. 8 Rogue 8 Adventurer 0 Explorer 0 Win Type - Total 0 Types 0/0/0/0/0/0/0/0/0 Lore% 14 Gallery% 15 Achievement% 16 Wizard Run 0 Options --------- Layout 1 ASCII 0 Keyboard 0 Movement Mouse Keybinds 0 Fullscreen 1 Font 32/SmallcapsGlow Map View 50x35 Zoom Use 0% Tactical HUD 1 Map Filters NONE Filters NONE Steam 1 RUN: 75665663-693a-440c-bde7-7f971ecf28d6